[Event "Titled Tuesday Blitz December 7 2021"]
[White "Svane, Frederik"]
[Black "Sokolin, Leonid"]
[WhiteFideId "12923044"]
[BlackFideId "2009161"]
[WhiteElo "2459"]
[BlackElo "2394"]
[Result "0-1"]
[Round "05"]
[TimeControl "180+1"]
[Date "2021.12.07"]
[WhiteClock "0:00:04"]
[BlackClock "0:00:27"]

1. e4 {[%clk 0:03:00]}  c5 {[%clk 0:02:59]} 2. Nc3 {[%clk 0:02:52]}  Nc6 {[%clk 0:02:59]} 3. Nf3 {[%clk 0:02:37]}  e5 {[%clk 0:02:55]} 4. Bc4 {[%clk 0:02:35]}  Be7 {[%clk 0:02:55]} 5. O-O {[%clk 0:02:34]}  d6 {[%clk 0:02:56]} 6. d3 {[%clk 0:02:34]}  Nf6 {[%clk 0:02:56]} 7. h3 {[%clk 0:02:31]}  Be6 {[%clk 0:02:53]} 8. Ng5 {[%clk 0:02:22]}  Bxc4 {[%clk 0:02:50]} 9. dxc4 {[%clk 0:02:23]}  O-O {[%clk 0:02:49]} 10. Nf3 {[%clk 0:02:20]}  Nd4 {[%clk 0:02:48]} 11. Bg5 {[%clk 0:02:17]}  Nxe4 {[%clk 0:01:59]} 12. Nxe4 {[%clk 0:01:33]}  Nxf3+ {[%clk 0:01:58]} 13. Qxf3 {[%clk 0:01:27]}  Bxg5 {[%clk 0:01:58]} 14. Rad1 {[%clk 0:01:27]}  Be7 {[%clk 0:01:58]} 15. Nc3 {[%clk 0:01:24]}  Qd7 {[%clk 0:01:52]} 16. Rfe1 {[%clk 0:01:22]}  Qe6 {[%clk 0:01:48]} 17. b3 {[%clk 0:01:18]}  Rab8 {[%clk 0:01:40]} 18. Nd5 {[%clk 0:01:01]}  Rfd8 {[%clk 0:01:38]} 19. Nf4 {[%clk 0:00:52]}  Qf6 {[%clk 0:01:31]} 20. Qe4 {[%clk 0:00:43]}  Bf8 {[%clk 0:01:12]} 21. Nd5 {[%clk 0:00:42]}  Qg6 {[%clk 0:01:11]} 22. Qe2 {[%clk 0:00:36]}  f5 {[%clk 0:01:06]} 23. a4 {[%clk 0:00:35]}  Rd7 {[%clk 0:00:59]} 24. Rd2 {[%clk 0:00:35]}  Re8 {[%clk 0:00:58]} 25. Red1 {[%clk 0:00:35]}  Rf7 {[%clk 0:00:55]} 26. Nc3 {[%clk 0:00:31]}  e4 {[%clk 0:00:50]} 27. Nb5 {[%clk 0:00:28]}  Re6 {[%clk 0:00:45]} 28. Nxa7 {[%clk 0:00:19]}  f4 {[%clk 0:00:44]} 29. Qg4 {[%clk 0:00:19]}  Qh6 {[%clk 0:00:45]} 30. Nb5 {[%clk 0:00:14]}  Rg6 {[%clk 0:00:45]} 31. Qc8 {[%clk 0:00:12]}  f3 {[%clk 0:00:43]} 32. g3 {[%clk 0:00:04]}  e3 {[%clk 0:00:31]} 33. fxe3 {[%clk 0:00:03]}  Qxe3+ {[%clk 0:00:30]} 34. Kh2 {[%clk 0:00:03]}  f2 {[%clk 0:00:29]} 35. Rd3 {[%clk 0:00:03]}  Qe2 {[%clk 0:00:27]} 36. Kh1 {[%clk 0:00:03]}  f1=Q+ {[%clk 0:00:27]} 37. Rxf1 {[%clk 0:00:04]}  Qxf1+ {[%clk 0:00:27]} 0-1


[Site "https://www.chess.com"]

[Event "Titled Tuesday Blitz December 7 2021"]
[White "Sviridov, Valery"]
[Black "Gaehwiler, Gabriel"]
[WhiteFideId "4120680"]
[BlackFideId "1314530"]
[WhiteElo "2454"]
[BlackElo "2383"]
[Result "1-0"]
[Round "05"]
[TimeControl "180+1"]
[Date "2021.12.07"]
[WhiteClock "0:01:42"]
[BlackClock "0:01:04"]

1. Nf3 {[%clk 0:03:00]}  Nf6 {[%clk 0:02:59]} 2. g3 {[%clk 0:03:00]}  b6 {[%clk 0:02:59]} 3. Bg2 {[%clk 0:03:00]}  Bb7 {[%clk 0:03:00]} 4. O-O {[%clk 0:03:00]}  g6 {[%clk 0:03:00]} 5. c4 {[%clk 0:02:58]}  Bg7 {[%clk 0:02:59]} 6. Nc3 {[%clk 0:02:57]}  O-O {[%clk 0:02:59]} 7. d4 {[%clk 0:02:52]}  Ne4 {[%clk 0:02:58]} 8. Qd3 {[%clk 0:02:51]}  Nxc3 {[%clk 0:02:56]} 9. Qxc3 {[%clk 0:02:52]}  c5 {[%clk 0:02:43]} 10. Be3 {[%clk 0:02:52]}  Bxf3 {[%clk 0:02:38]} 11. Bxf3 {[%clk 0:02:50]}  Nc6 {[%clk 0:02:38]} 12. Bxc6 {[%clk 0:02:47]}  dxc6 {[%clk 0:02:35]} 13. Rad1 {[%clk 0:02:47]}  Qd7 {[%clk 0:02:33]} 14. Qd3 {[%clk 0:02:21]}  cxd4 {[%clk 0:02:10]} 15. Bxd4 {[%clk 0:02:22]}  Rfd8 {[%clk 0:02:07]} 16. Bxg7 {[%clk 0:02:21]}  Qxd3 {[%clk 0:02:06]} 17. Rxd3 {[%clk 0:02:22]}  Rxd3 {[%clk 0:02:06]} 18. exd3 {[%clk 0:02:23]}  Kxg7 {[%clk 0:02:07]} 19. f4 {[%clk 0:02:24]}  Rd8 {[%clk 0:02:06]} 20. Rd1 {[%clk 0:02:24]}  Kf6 {[%clk 0:02:05]} 21. Kf2 {[%clk 0:02:24]}  e5 {[%clk 0:01:55]} 22. Ke3 {[%clk 0:02:24]}  exf4+ {[%clk 0:01:53]} 23. Kxf4 {[%clk 0:02:25]}  Rd4+ {[%clk 0:01:50]} 24. Ke3 {[%clk 0:02:24]}  Ke5 {[%clk 0:01:49]} 25. b4 {[%clk 0:02:16]}  f5 {[%clk 0:01:48]} 26. Rf1 {[%clk 0:02:11]}  h6 {[%clk 0:01:33]} 27. a4 {[%clk 0:01:59]}  Rg4 {[%clk 0:01:25]} 28. Re1 {[%clk 0:01:57]}  Rd4 {[%clk 0:01:23]} 29. Kd2+ {[%clk 0:01:54]}  Kd6 {[%clk 0:01:21]} 30. Re8 {[%clk 0:01:55]}  Rg4 {[%clk 0:01:16]} 31. b5 {[%clk 0:01:49]}  cxb5 {[%clk 0:01:14]} 32. axb5 {[%clk 0:01:50]}  h5 {[%clk 0:01:10]} 33. Ra8 {[%clk 0:01:46]}  h4 {[%clk 0:01:09]} 34. Rxa7 {[%clk 0:01:45]}  hxg3 {[%clk 0:01:09]} 35. hxg3 {[%clk 0:01:45]}  Rxg3 {[%clk 0:01:08]} 36. Rb7 {[%clk 0:01:45]}  Kc5 {[%clk 0:01:04]} 37. Kc3 {[%clk 0:01:42]} 1-0


[Site "https://www.chess.com"]

[Event "Titled Tuesday Blitz December 7 2021"]
[White "Tasev, Dejan"]
[Black "Belyakov, Bogdan"]
[WhiteFideId "936618"]
[BlackFideId "24104795"]
[WhiteElo "2253"]
[BlackElo "2407"]
[Result "0-1"]
[Round "05"]
[TimeControl "180+1"]
[Date "2021.12.07"]
[WhiteClock "0:00:11"]
[BlackClock "0:00:31"]

1. e4 {[%clk 0:03:00]}  e5 {[%clk 0:02:59]} 2. Nf3 {[%clk 0:02:59]}  Nc6 {[%clk 0:02:58]} 3. Bc4 {[%clk 0:02:58]}  Bc5 {[%clk 0:02:57]} 4. d3 {[%clk 0:02:58]}  Nf6 {[%clk 0:02:57]} 5. h3 {[%clk 0:02:59]}  O-O {[%clk 0:02:54]} 6. Nc3 {[%clk 0:02:58]}  h6 {[%clk 0:02:51]} 7. Be3 {[%clk 0:02:58]}  Bxe3 {[%clk 0:02:49]} 8. fxe3 {[%clk 0:02:58]}  d6 {[%clk 0:02:49]} 9. O-O {[%clk 0:02:58]}  Be6 {[%clk 0:02:49]} 10. Bb3 {[%clk 0:02:58]}  d5 {[%clk 0:02:42]} 11. exd5 {[%clk 0:02:53]}  Nxd5 {[%clk 0:02:41]} 12. Nxd5 {[%clk 0:02:50]}  Bxd5 {[%clk 0:02:41]} 13. e4 {[%clk 0:02:50]}  Bxb3 {[%clk 0:02:41]} 14. axb3 {[%clk 0:02:50]}  a5 {[%clk 0:02:40]} 15. Qe1 {[%clk 0:02:47]}  b6 {[%clk 0:02:40]} 16. Qg3 {[%clk 0:02:45]}  Qd6 {[%clk 0:02:34]} 17. Rf2 {[%clk 0:02:42]}  Rae8 {[%clk 0:02:32]} 18. Nh4 {[%clk 0:02:40]}  Ne7 {[%clk 0:02:25]} 19. Raf1 {[%clk 0:02:38]}  f6 {[%clk 0:02:17]} 20. Kh2 {[%clk 0:02:30]}  Kh8 {[%clk 0:02:14]} 21. Qg4 {[%clk 0:02:11]}  g5 {[%clk 0:02:10]} 22. Nf5 {[%clk 0:01:55]}  Nxf5 {[%clk 0:02:10]} 23. Rxf5 {[%clk 0:01:54]}  Kg7 {[%clk 0:02:06]} 24. Qf3 {[%clk 0:01:51]}  c5 {[%clk 0:02:05]} 25. Rf2 {[%clk 0:01:29]}  b5 {[%clk 0:02:03]} 26. Qd1 {[%clk 0:01:22]}  a4 {[%clk 0:02:02]} 27. bxa4 {[%clk 0:01:22]}  bxa4 {[%clk 0:02:03]} 28. Qa1 {[%clk 0:01:22]}  Rb8 {[%clk 0:01:56]} 29. Qxa4 {[%clk 0:01:16]}  Rxb2 {[%clk 0:01:56]} 30. h4 {[%clk 0:01:05]}  Rf7 {[%clk 0:01:53]} 31. hxg5 {[%clk 0:01:03]}  hxg5 {[%clk 0:01:53]} 32. R2f3 {[%clk 0:00:57]}  Rb4 {[%clk 0:01:37]} 33. Qa1 {[%clk 0:00:53]}  Rb8 {[%clk 0:01:36]} 34. Rh3 {[%clk 0:00:53]}  Rh8 {[%clk 0:01:34]} 35. Rxh8 {[%clk 0:00:52]}  Kxh8 {[%clk 0:01:35]} 36. Kg3 {[%clk 0:00:52]}  Kg7 {[%clk 0:01:35]} 37. Rf1 {[%clk 0:00:50]}  Qd4 {[%clk 0:01:34]} 38. Qxd4 {[%clk 0:00:37]}  cxd4 {[%clk 0:01:35]} 39. Rb1 {[%clk 0:00:36]}  Rc7 {[%clk 0:01:34]} 40. Rb2 {[%clk 0:00:36]}  Kg6 {[%clk 0:01:34]} 41. Kg4 {[%clk 0:00:36]}  Rh7 {[%clk 0:01:32]} 42. Kg3 {[%clk 0:00:33]}  Rh1 {[%clk 0:01:31]} 43. Rb6 {[%clk 0:00:31]}  Rd1 {[%clk 0:01:25]} 44. Rc6 {[%clk 0:00:30]}  Rd2 {[%clk 0:01:25]} 45. Kf3 {[%clk 0:00:30]}  Kf7 {[%clk 0:01:23]} 46. g3 {[%clk 0:00:29]}  Kg7 {[%clk 0:01:20]} 47. Kg4 {[%clk 0:00:29]}  Kg6 {[%clk 0:01:20]} 48. Rc5 {[%clk 0:00:28]}  Rf2 {[%clk 0:01:15]} 49. Rc6 {[%clk 0:00:28]}  Kf7 {[%clk 0:01:14]} 50. Rc7+ {[%clk 0:00:28]}  Ke6 {[%clk 0:01:15]} 51. Rc6+ {[%clk 0:00:28]}  Kd7 {[%clk 0:01:15]} 52. Rc4 {[%clk 0:00:28]}  Ke6 {[%clk 0:01:06]} 53. Kh5 {[%clk 0:00:25]}  Rg2 {[%clk 0:01:00]} 54. Kg6 {[%clk 0:00:24]}  Rxg3 {[%clk 0:01:00]} 55. Rc6+ {[%clk 0:00:24]}  Ke7 {[%clk 0:01:00]} 56. Rxf6 {[%clk 0:00:23]}  Rg2 {[%clk 0:00:58]} 57. Rf5 {[%clk 0:00:23]}  Ke6 {[%clk 0:00:53]} 58. Rxg5 {[%clk 0:00:20]}  Rxc2 {[%clk 0:00:53]} 59. Rg3 {[%clk 0:00:20]}  Re2 {[%clk 0:00:50]} 60. Kg5 {[%clk 0:00:19]}  Kd6 {[%clk 0:00:48]} 61. Kf5 {[%clk 0:00:18]}  Rf2+ {[%clk 0:00:42]} 62. Kg6 {[%clk 0:00:17]}  Kc5 {[%clk 0:00:41]} 63. Rg5 {[%clk 0:00:17]}  Kb4 {[%clk 0:00:40]} 64. Rxe5 {[%clk 0:00:17]}  Kc3 {[%clk 0:00:40]} 65. Rd5 {[%clk 0:00:17]}  Kxd3 {[%clk 0:00:40]} 66. e5 {[%clk 0:00:17]}  Ke4 {[%clk 0:00:39]} 67. Rd8 {[%clk 0:00:13]}  Kxe5 {[%clk 0:00:37]} 68. Kg5 {[%clk 0:00:13]}  Rg2+ {[%clk 0:00:34]} 69. Kh4 {[%clk 0:00:13]}  Ke4 {[%clk 0:00:33]} 70. Re8+ {[%clk 0:00:13]}  Kd3 {[%clk 0:00:33]} 71. Kh3 {[%clk 0:00:13]}  Rg7 {[%clk 0:00:32]} 72. Rc8 {[%clk 0:00:11]}  Kd2 {[%clk 0:00:31]} 73. Ra8 {[%clk 0:00:11]}  d3 {[%clk 0:00:32]} 74. Ra2+ {[%clk 0:00:11]}  Ke1 {[%clk 0:00:32]} 75. Ra1+ {[%clk 0:00:11]}  Ke2 {[%clk 0:00:32]} 76. Ra8 {[%clk 0:00:11]}  Re7 {[%clk 0:00:31]} 0-1


[Site "https://www.chess.com"]

[Event "Titled Tuesday Blitz December 7 2021"]
[White "Terletsky, Oleg"]
[Black "Hamley, Ryan"]
[WhiteFideId "14116774"]
[BlackFideId "30959497"]
[WhiteElo "2055"]
[BlackElo "2560"]
[Result "1/2-1/2"]
[Round "05"]
[TimeControl "180+1"]
[Date "2021.12.07"]
[WhiteClock "0:00:22"]
[BlackClock "0:00:09"]

1. e4 {[%clk 0:03:00]}  e5 {[%clk 0:02:59]} 2. Nf3 {[%clk 0:03:00]}  Nc6 {[%clk 0:03:00]} 3. Nc3 {[%clk 0:02:59]}  Nf6 {[%clk 0:02:59]} 4. d4 {[%clk 0:02:58]}  exd4 {[%clk 0:03:00]} 5. Nxd4 {[%clk 0:02:58]}  Bb4 {[%clk 0:02:57]} 6. Nxc6 {[%clk 0:02:57]}  bxc6 {[%clk 0:02:57]} 7. Bd3 {[%clk 0:02:57]}  d5 {[%clk 0:02:53]} 8. exd5 {[%clk 0:02:58]}  cxd5 {[%clk 0:02:52]} 9. O-O {[%clk 0:02:56]}  O-O {[%clk 0:02:52]} 10. Bg5 {[%clk 0:02:48]}  c6 {[%clk 0:02:51]} 11. Qf3 {[%clk 0:02:46]}  h6 {[%clk 0:02:41]} 12. Bxf6 {[%clk 0:02:45]}  Qxf6 {[%clk 0:02:40]} 13. Qxf6 {[%clk 0:02:46]}  gxf6 {[%clk 0:02:40]} 14. Ne2 {[%clk 0:02:46]}  Bd6 {[%clk 0:02:37]} 15. Ng3 {[%clk 0:02:45]}  Re8 {[%clk 0:02:35]} 16. Nf5 {[%clk 0:02:41]}  Bf8 {[%clk 0:02:32]} 17. f4 {[%clk 0:02:36]}  Bxf5 {[%clk 0:02:25]} 18. Bxf5 {[%clk 0:02:37]}  Re2 {[%clk 0:02:25]} 19. Bd3 {[%clk 0:02:35]}  Rd2 {[%clk 0:02:20]} 20. Rf3 {[%clk 0:02:32]}  Bc5+ {[%clk 0:02:18]} 21. Kf1 {[%clk 0:02:27]}  Re8 {[%clk 0:02:18]} 22. Re1 {[%clk 0:02:26]}  Rxe1+ {[%clk 0:02:16]} 23. Kxe1 {[%clk 0:02:24]}  Rxg2 {[%clk 0:02:15]} 24. Rg3+ {[%clk 0:02:19]}  Rxg3 {[%clk 0:02:14]} 25. hxg3 {[%clk 0:02:20]}  Kf8 {[%clk 0:02:10]} 26. Ke2 {[%clk 0:02:15]}  Ke7 {[%clk 0:02:08]} 27. Kf3 {[%clk 0:02:15]}  Ke6 {[%clk 0:02:05]} 28. Bf1 {[%clk 0:02:00]}  f5 {[%clk 0:01:58]} 29. Ba6 {[%clk 0:01:55]}  Bd4 {[%clk 0:01:53]} 30. c3 {[%clk 0:01:53]}  Bg7 {[%clk 0:01:52]} 31. Bc8+ {[%clk 0:01:52]}  Kd6 {[%clk 0:01:47]} 32. Bxf5 {[%clk 0:01:51]}  c5 {[%clk 0:01:48]} 33. Bc2 {[%clk 0:01:45]}  d4 {[%clk 0:01:44]} 34. cxd4 {[%clk 0:01:45]}  Bxd4 {[%clk 0:01:44]} 35. b3 {[%clk 0:01:44]}  Ke6 {[%clk 0:01:36]} 36. Bd3 {[%clk 0:01:30]}  f6 {[%clk 0:01:30]} 37. Bc4+ {[%clk 0:01:29]}  Kf5 {[%clk 0:01:19]} 38. g4+ {[%clk 0:01:29]}  Kg6 {[%clk 0:01:19]} 39. Bd3+ {[%clk 0:01:23]}  Kf7 {[%clk 0:01:19]} 40. Ke4 {[%clk 0:01:23]}  Bb2 {[%clk 0:01:14]} 41. Kd5 {[%clk 0:01:19]}  Bc1 {[%clk 0:01:08]} 42. Kxc5 {[%clk 0:01:14]}  Bxf4 {[%clk 0:01:07]} 43. Kc6 {[%clk 0:01:11]}  Ke7 {[%clk 0:01:07]} 44. Bf5 {[%clk 0:01:07]}  Kd8 {[%clk 0:00:59]} 45. b4 {[%clk 0:01:07]}  Bd2 {[%clk 0:00:56]} 46. b5 {[%clk 0:01:05]}  Ba5 {[%clk 0:00:56]} 47. a4 {[%clk 0:01:03]}  Bb6 {[%clk 0:00:53]} 48. Kb7 {[%clk 0:01:03]}  Bc5 {[%clk 0:00:19]} 49. a5 {[%clk 0:01:00]}  Bd4 {[%clk 0:00:05]} 50. Be4 {[%clk 0:00:54]}  Ke7 {[%clk 0:00:04]} 51. Bd3 {[%clk 0:00:49]}  Kf7 {[%clk 0:00:03]} 52. Bf5 {[%clk 0:00:41]}  Kg7 {[%clk 0:00:03]} 53. b6 {[%clk 0:00:41]}  axb6 {[%clk 0:00:02]} 54. a6 {[%clk 0:00:41]}  b5 {[%clk 0:00:02]} 55. Be6 {[%clk 0:00:41]}  b4 {[%clk 0:00:02]} 56. a7 {[%clk 0:00:39]}  Bxa7 {[%clk 0:00:02]} 57. Kxa7 {[%clk 0:00:40]}  h5 {[%clk 0:00:02]} 58. gxh5 {[%clk 0:00:37]}  Kh6 {[%clk 0:00:03]} 59. Bg4 {[%clk 0:00:37]}  b3 {[%clk 0:00:02]} 60. Kb6 {[%clk 0:00:32]}  b2 {[%clk 0:00:02]} 61. Bf5 {[%clk 0:00:32]}  Kxh5 {[%clk 0:00:03]} 62. Kc5 {[%clk 0:00:32]}  Kg5 {[%clk 0:00:04]} 63. Bb1 {[%clk 0:00:32]}  f5 {[%clk 0:00:04]} 64. Kd4 {[%clk 0:00:32]}  Kg4 {[%clk 0:00:05]} 65. Ke3 {[%clk 0:00:31]}  Kg3 {[%clk 0:00:05]} 66. Ke2 {[%clk 0:00:30]}  f4 {[%clk 0:00:05]} 67. Kf1 {[%clk 0:00:29]}  Kf3 {[%clk 0:00:06]} 68. Bc2 {[%clk 0:00:29]}  Ke3 {[%clk 0:00:07]} 69. Bh7 {[%clk 0:00:23]}  Kd2 {[%clk 0:00:07]} 70. Kf2 {[%clk 0:00:23]}  Kc1 {[%clk 0:00:08]} 71. Kf3 {[%clk 0:00:22]}  b1=Q {[%clk 0:00:09]} 72. Bxb1 {[%clk 0:00:22]}  Kxb1 {[%clk 0:00:09]} 73. Kxf4 {[%clk 0:00:22]} 1/2-1/2


[Site "https://www.chess.com"]

[Event "Titled Tuesday Blitz December 7 2021"]
[White "Terry, Renato"]
[Black "Solon, Nathan"]
[WhiteFideId "3803457"]
[BlackFideId "2017229"]
[WhiteElo "2577"]
[BlackElo "2565"]
[Result "1-0"]
[Round "05"]
[TimeControl "180+1"]
[Date "2021.12.07"]
[WhiteClock "0:00:25"]
[BlackClock "0:00:15"]

1. e4 {[%clk 0:03:00]}  c5 {[%clk 0:02:59]} 2. Nf3 {[%clk 0:03:00]}  d6 {[%clk 0:03:00]} 3. Bb5+ {[%clk 0:03:00]}  Nd7 {[%clk 0:03:00]} 4. d4 {[%clk 0:03:00]}  cxd4 {[%clk 0:03:00]} 5. Qxd4 {[%clk 0:03:01]}  a6 {[%clk 0:03:01]} 6. Bxd7+ {[%clk 0:03:01]}  Bxd7 {[%clk 0:03:02]} 7. Bg5 {[%clk 0:03:01]}  h6 {[%clk 0:02:59]} 8. Bh4 {[%clk 0:03:01]}  Rc8 {[%clk 0:02:57]} 9. O-O {[%clk 0:03:01]}  Nf6 {[%clk 0:02:46]} 10. Rd1 {[%clk 0:02:32]}  e5 {[%clk 0:02:29]} 11. Qd3 {[%clk 0:02:19]}  g5 {[%clk 0:02:24]} 12. Bg3 {[%clk 0:02:18]}  Qc7 {[%clk 0:02:16]} 13. Nc3 {[%clk 0:02:17]}  Be6 {[%clk 0:02:06]} 14. Nd2 {[%clk 0:02:13]}  Be7 {[%clk 0:02:03]} 15. Nf1 {[%clk 0:02:13]}  h5 {[%clk 0:01:53]} 16. h4 {[%clk 0:02:13]}  Ng4 {[%clk 0:01:47]} 17. Rab1 {[%clk 0:01:34]}  gxh4 {[%clk 0:01:46]} 18. Bh2 {[%clk 0:01:35]}  Rg8 {[%clk 0:01:42]} 19. Ne3 {[%clk 0:01:31]}  Nxe3 {[%clk 0:01:39]} 20. Qxe3 {[%clk 0:01:31]}  h3 {[%clk 0:01:39]} 21. g3 {[%clk 0:01:30]}  h4 {[%clk 0:01:34]} 22. Kh1 {[%clk 0:01:30]}  hxg3 {[%clk 0:01:32]} 23. Bxg3 {[%clk 0:01:31]}  Qc5 {[%clk 0:01:25]} 24. Qd3 {[%clk 0:01:21]}  Qc4 {[%clk 0:01:17]} 25. Qe3 {[%clk 0:01:20]}  Qc5 {[%clk 0:01:13]} 26. Qd3 {[%clk 0:01:20]}  Rc6 {[%clk 0:01:01]} 27. Kh2 {[%clk 0:01:08]}  Bg5 {[%clk 0:00:57]} 28. Qf3 {[%clk 0:00:49]}  Bf4 {[%clk 0:00:49]} 29. Rf1 {[%clk 0:00:49]}  Bg4 {[%clk 0:00:42]} 30. Qd3 {[%clk 0:00:49]}  Be6 {[%clk 0:00:42]} 31. Qf3 {[%clk 0:00:48]}  Bc4 {[%clk 0:00:38]} 32. Rg1 {[%clk 0:00:48]}  Bxg3+ {[%clk 0:00:31]} 33. Rxg3 {[%clk 0:00:48]}  Rxg3 {[%clk 0:00:31]} 34. Qxg3 {[%clk 0:00:47]}  Be6 {[%clk 0:00:31]} 35. Rd1 {[%clk 0:00:37]}  Qb4 {[%clk 0:00:25]} 36. Qg8+ {[%clk 0:00:29]}  Kd7 {[%clk 0:00:25]} 37. Nd5 {[%clk 0:00:30]}  Qxb2 {[%clk 0:00:18]} 38. Qb8 {[%clk 0:00:29]}  Rxc2 {[%clk 0:00:15]} 39. Nf6+ {[%clk 0:00:30]}  Ke7 {[%clk 0:00:16]} 40. Ng8+ {[%clk 0:00:30]}  Kd7 {[%clk 0:00:16]} 41. Nf6+ {[%clk 0:00:31]}  Ke7 {[%clk 0:00:15]} 42. Ng8+ {[%clk 0:00:25]}  Kd7 {[%clk 0:00:15]} 43. Rxd6# {[%clk 0:00:25]} 1-0


[Site "https://www.chess.com"]

[Event "Titled Tuesday Blitz December 7 2021"]
[White "Topalov, Aleksandar"]
[Black "Mustafayev, Farid"]
[WhiteFideId "925659"]
[BlackFideId "13408771"]
[WhiteElo "2179"]
[BlackElo "2091"]
[Result "0-1"]
[Round "05"]
[TimeControl "180+1"]
[Date "2021.12.07"]
[WhiteClock "0:00:02"]
[BlackClock "0:00:19"]

1. b3 {[%clk 0:03:00]}  d5 {[%clk 0:02:55]} 2. Bb2 {[%clk 0:03:00]}  c5 {[%clk 0:02:56]} 3. e3 {[%clk 0:03:00]}  Nc6 {[%clk 0:02:56]} 4. Bb5 {[%clk 0:03:00]}  f6 {[%clk 0:02:52]} 5. d4 {[%clk 0:02:59]}  cxd4 {[%clk 0:02:52]} 6. exd4 {[%clk 0:02:59]}  Bf5 {[%clk 0:02:52]} 7. Nf3 {[%clk 0:02:58]}  e6 {[%clk 0:02:48]} 8. O-O {[%clk 0:02:58]}  g5 {[%clk 0:02:35]} 9. c4 {[%clk 0:02:57]}  Bd6 {[%clk 0:02:34]} 10. Nc3 {[%clk 0:02:50]}  Ne7 {[%clk 0:02:33]} 11. Re1 {[%clk 0:02:49]}  a6 {[%clk 0:02:26]} 12. Ba4 {[%clk 0:02:32]}  O-O {[%clk 0:02:14]} 13. a3 {[%clk 0:02:23]}  Na5 {[%clk 0:02:09]} 14. c5 {[%clk 0:02:00]}  Bb8 {[%clk 0:02:01]} 15. b4 {[%clk 0:02:00]}  Nc4 {[%clk 0:02:01]} 16. Bc1 {[%clk 0:02:00]}  Qc7 {[%clk 0:02:00]} 17. g3 {[%clk 0:01:40]}  Bg4 {[%clk 0:02:00]} 18. Qd3 {[%clk 0:01:28]}  h5 {[%clk 0:01:36]} 19. Bc2 {[%clk 0:01:21]}  Bf5 {[%clk 0:01:33]} 20. Qd1 {[%clk 0:01:20]}  Bg4 {[%clk 0:01:33]} 21. Qd3 {[%clk 0:01:19]}  Bf5 {[%clk 0:01:01]} 22. Qd1 {[%clk 0:01:19]}  Qd7 {[%clk 0:00:55]} 23. Bxf5 {[%clk 0:00:42]}  Nxf5 {[%clk 0:00:56]} 24. h3 {[%clk 0:00:39]}  h4 {[%clk 0:00:51]} 25. g4 {[%clk 0:00:32]}  Ne7 {[%clk 0:00:47]} 26. Qd3 {[%clk 0:00:32]}  Kg7 {[%clk 0:00:42]} 27. Bd2 {[%clk 0:00:31]}  Ng6 {[%clk 0:00:43]} 28. Bc1 {[%clk 0:00:18]}  Bc7 {[%clk 0:00:37]} 29. Re2 {[%clk 0:00:17]}  Rae8 {[%clk 0:00:37]} 30. Raa2 {[%clk 0:00:14]}  Bf4 {[%clk 0:00:36]} 31. Re1 {[%clk 0:00:10]}  Bxc1 {[%clk 0:00:30]} 32. Rxc1 {[%clk 0:00:10]}  Nf4 {[%clk 0:00:31]} 33. Qf1 {[%clk 0:00:11]}  e5 {[%clk 0:00:32]} 34. dxe5 {[%clk 0:00:10]}  fxe5 {[%clk 0:00:32]} 35. Rd1 {[%clk 0:00:10]}  e4 {[%clk 0:00:30]} 36. Qxc4 {[%clk 0:00:09]}  Nxh3+ {[%clk 0:00:26]} 37. Kh2 {[%clk 0:00:08]}  Rxf3 {[%clk 0:00:25]} 38. Qd4+ {[%clk 0:00:06]}  Kh6 {[%clk 0:00:22]} 39. Nxd5 {[%clk 0:00:05]}  Qxg4 {[%clk 0:00:21]} 40. Rg1 {[%clk 0:00:02]}  Qxg1# {[%clk 0:00:19]} 0-1


[Site "https://www.chess.com"]

[Event "Titled Tuesday Blitz December 7 2021"]
[White "Vakhlamov, Igor L."]
[Black "Villalba, Marcelo"]
[WhiteFideId "24126748"]
[BlackFideId "3701859"]
[WhiteElo "2416"]
[BlackElo "2160"]
[Result "1-0"]
[Round "05"]
[TimeControl "180+1"]
[Date "2021.12.07"]
[WhiteClock "0:00:04"]
[BlackClock "0:00:03"]

1. e4 {[%clk 0:02:25]}  e5 {[%clk 0:02:58]} 2. Nf3 {[%clk 0:02:25]}  Nc6 {[%clk 0:02:58]} 3. Nc3 {[%clk 0:02:25]}  Nf6 {[%clk 0:02:57]} 4. Bb5 {[%clk 0:02:26]}  Nd4 {[%clk 0:02:43]} 5. Bc4 {[%clk 0:02:24]}  Nxf3+ {[%clk 0:02:11]} 6. gxf3 {[%clk 0:02:25]}  Bc5 {[%clk 0:02:01]} 7. Rg1 {[%clk 0:02:25]}  Rg8 {[%clk 0:01:57]} 8. d3 {[%clk 0:02:13]}  d6 {[%clk 0:01:53]} 9. f4 {[%clk 0:02:11]}  Be6 {[%clk 0:01:44]} 10. Bxe6 {[%clk 0:01:51]}  fxe6 {[%clk 0:01:45]} 11. fxe5 {[%clk 0:01:51]}  dxe5 {[%clk 0:01:45]} 12. Be3 {[%clk 0:01:44]}  Qd6 {[%clk 0:01:35]} 13. Qe2 {[%clk 0:01:31]}  O-O-O {[%clk 0:01:33]} 14. O-O-O {[%clk 0:01:30]}  Bd4 {[%clk 0:01:33]} 15. Nb5 {[%clk 0:01:04]}  Qa6 {[%clk 0:01:03]} 16. Na3 {[%clk 0:01:03]}  b5 {[%clk 0:00:44]} 17. Kb1 {[%clk 0:00:50]}  Qa4 {[%clk 0:00:36]} 18. Qd2 {[%clk 0:00:38]}  Rd6 {[%clk 0:00:27]} 19. c3 {[%clk 0:00:35]}  Bb6 {[%clk 0:00:25]} 20. Qc2 {[%clk 0:00:29]}  Qa5 {[%clk 0:00:18]} 21. Qb3 {[%clk 0:00:26]}  a6 {[%clk 0:00:18]} 22. Bxb6 {[%clk 0:00:18]}  Qxb6 {[%clk 0:00:17]} 23. Rg2 {[%clk 0:00:11]}  g6 {[%clk 0:00:16]} 24. f3 {[%clk 0:00:11]}  Rgd8 {[%clk 0:00:16]} 25. Qc2 {[%clk 0:00:09]}  c5 {[%clk 0:00:16]} 26. Rgd2 {[%clk 0:00:07]}  Nh5 {[%clk 0:00:16]} 27. d4 {[%clk 0:00:06]}  exd4 {[%clk 0:00:14]} 28. cxd4 {[%clk 0:00:07]}  c4 {[%clk 0:00:13]} 29. b3 {[%clk 0:00:07]}  Kb8 {[%clk 0:00:08]} 30. Ka1 {[%clk 0:00:06]}  Rxd4 {[%clk 0:00:08]} 31. bxc4 {[%clk 0:00:06]}  Rxd2 {[%clk 0:00:07]} 32. Rxd2 {[%clk 0:00:07]}  Rxd2 {[%clk 0:00:07]} 33. Qxd2 {[%clk 0:00:08]}  b4 {[%clk 0:00:07]} 34. Nc2 {[%clk 0:00:07]}  e5 {[%clk 0:00:08]} 35. Qxb4 {[%clk 0:00:05]}  Qxb4 {[%clk 0:00:08]} 36. Nxb4 {[%clk 0:00:06]}  Kb7 {[%clk 0:00:07]} 37. Nd3 {[%clk 0:00:07]}  Nf4 {[%clk 0:00:05]} 38. Nxf4 {[%clk 0:00:07]}  exf4 {[%clk 0:00:05]} 39. h4 {[%clk 0:00:06]}  h6 {[%clk 0:00:05]} 40. Kb2 {[%clk 0:00:06]}  g5 {[%clk 0:00:06]} 41. hxg5 {[%clk 0:00:06]}  hxg5 {[%clk 0:00:06]} 42. Kc3 {[%clk 0:00:06]}  Kc6 {[%clk 0:00:06]} 43. Kd4 {[%clk 0:00:06]}  Kd6 {[%clk 0:00:07]} 44. c5+ {[%clk 0:00:06]}  Ke6 {[%clk 0:00:06]} 45. a4 {[%clk 0:00:05]}  a5 {[%clk 0:00:06]} 46. Kc4 {[%clk 0:00:04]}  Ke5 {[%clk 0:00:03]} 47. Kd3 {[%clk 0:00:04]}  Ke6 {[%clk 0:00:02]} 48. Kd4 {[%clk 0:00:05]}  Ke7 {[%clk 0:00:03]} 49. e5 {[%clk 0:00:05]}  Kd7 {[%clk 0:00:03]} 50. Ke4 {[%clk 0:00:05]}  Ke6 {[%clk 0:00:03]} 51. c6 {[%clk 0:00:04]}  Ke7 {[%clk 0:00:03]} 52. Kf5 {[%clk 0:00:04]} 1-0


[Site "https://www.chess.com"]